fUSD/lending_fUSD_20241222
["ID","MTS","AMOUNT","RATE_DAILY","PERIOD"]
[346261380,1734845447899,-500.0,0.00019452,2]
[346261381,1734845447908,-500.0,0.00019452,2]
[346261382,1734845447919,-500.0,0.00019452,2]
[346261383,1734845447928,-500.0,0.00019452,2]
[346261384,1734845447938,-500.0,0.00019452,2]
[346261385,1734845447948,-500.0,0.00019452,2]
[346261386,1734845447957,-500.0,0.00019452,2]
[346261387,1734845447967,-500.0,0.00019452,2]
[346261388,1734845447980,-500.0,0.00019452,2]
[346261389,1734845447990,-500.0,0.00019452,2]
[346261390,1734845448000,-500.0,0.00019452,2]
[346261391,1734845448009,-1099.24,0.00019452,2]
[346261392,1734845448018,-500.0,0.00019452,2]
[346261393,1734845448027,-500.0,0.00019452,2]
[346261394,1734845448036,-500.0,0.00019452,2]
[346261395,1734845448044,-500.0,0.00019452,2]
[346261396,1734845448054,-500.0,0.00019452,2]
[346261397,1734845448063,-589.46854947,0.00019452,2]
[346261398,1734845448077,-679.06,0.00019452,2]
[346261399,1734845448087,-500.0,0.00019452,2]
[346261400,1734845448096,-1120.62,0.00019452,2]
[346261401,1734845448106,-500.0,0.00019452,2]
[346261402,1734845448115,-629.72,0.00019452,2]
[346261403,1734845448128,-506.11573681,0.00019452,2]
[346261404,1734845448137,-500.0,0.00019452,2]
[346261405,1734845448146,-500.0,0.00019452,2]
[346261406,1734845448155,-351.22453456,0.00019452,2]
[346261407,1734845448173,-148.77546544,0.00019452,2]
[346261408,1734845448183,-500.0,0.00019452,2]
[346261409,1734845448192,-500.0,0.00019452,2]
[346261410,1734845448201,-500.0,0.00019452,2]
[346261411,1734845448210,-329.8471395,0.00019452,2]
[346261419,1734846632026,-230.08,0.00016723,2]
[346261420,1734846632036,-252.95,0.00018303,2]
[346261421,1734846632047,-503.23267301,0.00018363,2]
[346261422,1734846632057,-1000.0,0.0001839,2]
[346261423,1734846632067,-480.09,0.00018403,2]
[346261424,1734846632077,-198.78,0.00018424,2]
[346261425,1734846632086,-672.54,0.00018706,2]
[346261426,1734846632095,-150.0,0.00018767,2]
[346261427,1734846632105,-407.411,0.0001881,2]
[346261428,1734846632115,-230.08,0.00018986,2]
[346261429,1734846632124,-206.44178413,0.00019078,2]
[346261430,1734846632133,-152.95519857,0.00019078,2]
[346261431,1734846632143,-1000.0,0.00019078,2]
[346261432,1734846632152,-598.4277,0.00019078,2]
[346261433,1734846632161,-500.0,0.00019078,2]
[346261434,1734846632171,-2849.79717627,0.00019078,2]
[346261435,1734846632245,-645.15370216,0.00019078,2]
[346261436,1734846632266,-250.0,0.0001829,2]
[346261437,1734846632275,-9665.25015491,0.00019078,2]
[346261438,1734846632287,-1641.72216666,0.00019078,2]
[346261439,1734846632296,-355.49518129,0.00019078,2]
[346261440,1734846632311,-712.02367317,0.00019078,2]
[346261448,1734846637878,-3932.48114554,0.00019078,2]
[346261449,1734846637888,-206.44178408,0.00019147,2]
[346261450,1734846637897,-86.07707038,0.00019177,2]
[346261451,1734846637908,-913.92292962,0.00019177,2]
[346261452,1734846637917,-4.88101538,0.00019178,2]
[346261453,1734846637950,-301.0028785,0.00019178,2]
[346261454,1734846637959,-326.65919255,0.00019178,2]
[346261455,1734846637969,-658.26526045,0.00019178,2]
[346261456,1734846637978,-153.566144,0.00019178,2]
[346261457,1734846637987,-90.79940854,0.00019178,2]
[346261458,1734846638045,-1391.83819246,0.00019178,2]
[346261459,1734846638054,-1356.06,0.00019178,2]
[346261460,1734846638063,-148.49697222,0.00019178,2]
[346261461,1734846638103,-351.50302778,0.00019178,2]
[346261462,1734846638112,-500.0,0.00019178,2]
[346261463,1734846638121,-393.87664664,0.00019178,2]
[346261464,1734846638132,-106.12335336,0.00019178,2]
[346261465,1734846638142,-500.0,0.00019178,2]
[346261466,1734846638152,-500.0,0.00019178,2]
[346261467,1734846638162,-500.0,0.00019178,2]
[346261468,1734846638172,-500.0,0.00019178,2]
[346261469,1734846638182,-500.0,0.00019178,2]
[346261470,1734846638192,-500.0,0.00019178,2]
[346261471,1734846638202,-500.0,0.00019178,2]
[346261472,1734846638211,-727.24,0.00019178,2]
[346261473,1734846638220,-500.0,0.00019178,2]
[346261474,1734846638230,-500.0,0.00019178,2]
[346261475,1734846638240,-500.0,0.00019178,2]
[346261476,1734846638249,-538.43956508,0.00019178,2]
[346261477,1734846638258,-500.0,0.00019178,2]
[346261478,1734846638268,-500.0,0.00019178,2]
[346261479,1734846638277,-509.45633621,0.00019178,2]
[346261481,1734846638286,-218.74503834,0.00019178,2]
[346261483,1734846638295,-500.0,0.00019178,2]
[346261485,1734846638304,-500.0,0.00019178,2]
[346261487,1734846638313,-500.0,0.00019178,2]
[346261488,1734846638322,-500.0,0.00019178,2]
[346261489,1734846638331,-595.91,0.00019178,2]
[346261490,1734846638340,-500.0,0.00019178,2]
[346261491,1734846638348,-500.0,0.00019178,2]
[346261492,1734846638358,-500.0,0.00019178,2]
[346261493,1734846638367,-628.2786769,0.00019178,2]
[346261494,1734846638376,-494.56984537,0.00019178,2]
[346261495,1734846638390,-5.43015463,0.00019178,2]
[346261496,1734846638399,-500.0,0.00019178,2]
[346261497,1734846638408,-500.0,0.00019178,2]
[346261498,1734846638417,-500.0,0.00019178,2]
[346261499,1734846638427,-500.0,0.00019178,2]
[346261500,1734846638436,-500.0,0.00019178,2]
[346261501,1734846638445,-500.0,0.00019178,2]
[346261502,1734846638454,-157.014978,0.00019178,2]
[346261503,1734846638463,-784.2,0.00019178,2]
[346261504,1734846638472,-500.0,0.00019178,2]
[346261505,1734846638481,-500.0,0.00019178,2]
[346261506,1734846638491,-500.0,0.00019178,2]
[346261507,1734846638500,-500.0,0.00019178,2]
[346261508,1734846638509,-500.0,0.00019178,2]
[346261509,1734846638518,-500.0,0.00019178,2]
[346261510,1734846638528,-500.0,0.00019178,2]
[346261511,1734846638537,-500.0,0.00019178,2]
[346261512,1734846638547,-500.0,0.00019178,2]
[346261513,1734846638556,-509.3309132,0.00019178,2]
[346261514,1734846638565,-500.0,0.00019178,2]
[346261515,1734846638575,-500.0,0.00019178,2]
[346261516,1734846638584,-500.0,0.00019178,2]
[346261517,1734846638593,-500.0,0.00019178,2]
[346261518,1734846638602,-500.0,0.00019178,2]
[346261519,1734846638611,-500.0,0.00019178,2]
[346261520,1734846638620,-500.0,0.00019178,2]
[346261521,1734846638630,-1093.38,0.00019178,2]
[346261522,1734846638639,-500.0,0.00019178,2]
[346261523,1734846638649,-500.0,0.00019178,2]
[346261524,1734846638658,-500.0,0.00019178,2]
[346261525,1734846638667,-500.0,0.00019178,2]
[346261526,1734846638677,-599.19,0.00019178,2]
[346261527,1734846638686,-500.0,0.00019178,2]
[346261528,1734846638695,-500.0,0.00019178,2]
[346261529,1734846638705,-500.0,0.00019178,2]
[346261530,1734846638714,-500.0,0.00019178,2]
[346261531,1734846638723,-500.0,0.00019178,2]
[346261532,1734846638733,-665.53,0.00019178,2]
[346261533,1734846638742,-500.0,0.00019178,2]
[346261534,1734846638752,-500.0,0.00019178,2]
[346261535,1734846638762,-500.0,0.00019178,2]
[346261536,1734846638773,-500.0,0.00019178,2]
[346261537,1734846638783,-500.0,0.00019178,2]
[346261538,1734846638792,-563.01,0.00019178,2]
[346261539,1734846638802,-500.0,0.00019178,2]
[346261540,1734846638812,-500.0,0.00019178,2]
[346261541,1734846638821,-500.0,0.00019178,2]
[346261542,1734846638830,-500.0,0.00019178,2]
[346261543,1734846638840,-500.0,0.00019178,2]
[346261544,1734846638850,-500.0,0.00019178,2]
[346261545,1734846638859,-500.0,0.00019178,2]
[346261546,1734846638869,-500.0,0.00019178,2]
[346261547,1734846638878,-1007.64,0.00019178,2]
[346261548,1734846638887,-500.0,0.00019178,2]
[346261549,1734846638896,-500.0,0.00019178,2]
[346261550,1734846638906,-500.0,0.00019178,2]
[346261551,1734846638916,-500.0,0.00019178,2]
[346261552,1734846638925,-500.0,0.00019178,2]
[346261553,1734846638934,-500.0,0.00019178,2]
[346261554,1734846638944,-622.48,0.00019178,2]
[346261555,1734846638953,-500.0,0.00019178,2]
[346261556,1734846638963,-500.0,0.00019178,2]
[346261557,1734846638972,-500.0,0.00019178,2]
[346261558,1734846638981,-540.0,0.00019178,2]
[346261559,1734846638991,-500.0,0.00019178,2]
[346261560,1734846639000,-500.0,0.00019178,2]
[346261561,1734846639010,-500.0,0.00019178,2]
[346261562,1734846639020,-500.0,0.00019178,2]
[346261563,1734846639030,-500.0,0.00019178,2]
[346261564,1734846639039,-515.56,0.00019178,2]
[346261565,1734846639048,-57.23395417,0.00019178,2]
[346261566,1734846639063,-442.76604583,0.00019178,2]
[346261567,1734846639072,-500.0,0.00019178,2]
[346261568,1734846639082,-500.0,0.00019178,2]
[346261569,1734846639091,-500.0,0.00019178,2]
[346261570,1734846639100,-500.0,0.00019178,2]
[346261571,1734846639109,-500.0,0.00019178,2]
[346261572,1734846639119,-500.0,0.00019178,2]
[346261573,1734846639128,-500.0,0.00019178,2]
[346261574,1734846639137,-500.0,0.00019178,2]
[346261575,1734846639146,-2141.62,0.00019178,2]
[346261576,1734846639155,-500.0,0.00019178,2]
[346261577,1734846639164,-500.0,0.00019178,2]
[346261578,1734846639173,-500.0,0.00019178,2]
[346261579,1734846639186,-500.0,0.00019178,2]
[346261580,1734846639196,-225.30818231,0.00019178,2]
[346261581,1734846639205,-500.0,0.00019178,2]
[346261582,1734846639214,-500.0,0.00019178,2]
[346261583,1734846639223,-500.0,0.00019178,2]
[346261584,1734846639233,-500.0,0.00019178,2]
[346261585,1734846639242,-500.0,0.00019178,2]
[346261586,1734846639252,-503.51857792,0.00019178,2]
[346261587,1734846639261,-500.0,0.00019178,2]
[346261588,1734846639272,-577.25,0.00019178,2]
[346261589,1734846639282,-209.2063729,0.00019178,2]
[346261590,1734846639291,-500.0,0.00019178,2]
[346261591,1734846639300,-79.43136451,0.00019178,2]
[346261592,1734846639312,-426.13379122,0.00019178,2]
[346261593,1734846639321,-500.0,0.00019178,2]
[346261594,1734846639330,-156.31231468,0.00019178,2]
[346261595,1734846639339,-404.1284947,0.00019178,2]
[346261596,1734846639934,-95.8715053,0.00019178,2]
[346261597,1734846639944,-500.0,0.00019178,2]
[346261598,1734846639955,-500.0,0.00019178,2]
[346261599,1734846639964,-614.15,0.00019178,2]
[346261600,1734846639975,-1027.24,0.00019178,2]
[346261601,1734846639986,-624.75,0.00019178,2]
[346261602,1734846639995,-500.0,0.00019178,2]
[346261603,1734846640006,-500.0,0.00019178,2]
[346261604,1734846640016,-500.0,0.00019178,2]
[346261605,1734846640027,-500.0,0.00019178,2]
[346261606,1734846640036,-1638.73,0.00019178,2]
[346261607,1734846640045,-500.0,0.00019178,2]
[346261608,1734846640054,-500.0,0.00019178,2]
[346261609,1734846640065,-500.0,0.00019178,2]
[346261610,1734846640074,-500.0,0.00019178,2]
[346261611,1734846640084,-503.46998734,0.00019178,2]
[346261612,1734846640093,-500.0,0.00019178,2]
[346261613,1734846640103,-500.0,0.00019178,2]
[346261614,1734846640113,-500.0,0.00019178,2]
[346261615,1734846640123,-500.0,0.00019178,2]
[346261616,1734846640132,-500.0,0.00019178,2]
[346261617,1734846640141,-500.0,0.00019178,2]
[346261618,1734846640150,-500.0,0.00019178,2]
[346261619,1734846640159,-500.0,0.00019178,2]
[346261620,1734846640170,-500.0,0.00019178,2]
[346261621,1734846640179,-500.0,0.00019178,2]
[346261622,1734846640189,-500.0,0.00019178,2]
[346261623,1734846640198,-500.0,0.00019178,2]
[346261624,1734846640207,-500.0,0.00019178,2]
[346261625,1734846640218,-500.0,0.00019178,2]
[346261626,1734846640227,-500.0,0.00019178,2]
[346261627,1734846640238,-500.0,0.00019178,2]
[346261628,1734846640249,-500.0,0.00019178,2]
[346261629,1734846640260,-500.0,0.00019178,2]
[346261630,1734846640270,-500.0,0.00019178,2]
[346261631,1734846640279,-545.11,0.00019178,2]
[346261632,1734846640288,-500.0,0.00019178,2]
[346261633,1734846640297,-500.0,0.00019178,2]
[346261634,1734846640308,-500.0,0.00019178,2]
[346261635,1734846640317,-500.0,0.00019178,2]
[346261636,1734846640328,-500.0,0.00019178,2]
[346261637,1734846640337,-500.0,0.00019178,2]
[346261638,1734846640348,-500.0,0.00019178,2]
[346261639,1734846640358,-500.0,0.00019178,2]
[346261640,1734846640370,-500.0,0.00019178,2]
[346261641,1734846640379,-500.0,0.00019178,2]
[346261642,1734846640392,-500.0,0.00019178,2]
[346261643,1734846640402,-500.0,0.00019178,2]
[346261644,1734846640412,-500.0,0.00019178,2]
[346261645,1734846640422,-500.0,0.00019178,2]
[346261646,1734846640432,-500.0,0.00019178,2]
[346261647,1734846640441,-500.0,0.00019178,2]
[346261649,1734846640452,-500.0,0.00019178,2]
[346261650,1734846640462,-500.0,0.00019178,2]
[346261651,1734846640472,-500.0,0.00019178,2]
[346261652,1734846640481,-500.0,0.00019178,2]
[346261653,1734846640490,-500.0,0.00019178,2]
[346261654,1734846640499,-1180.78,0.00019178,2]
[346261655,1734846640509,-376.57569896,0.00019178,2]
[346261656,1734846640518,-500.0,0.00019178,2]
[346261657,1734846640527,-500.0,0.00019178,2]
[346261658,1734846640537,-500.0,0.00019178,2]
[346261659,1734846640546,-500.0,0.00019178,2]
[346261660,1734846640556,-500.0,0.00019178,2]
[346261661,1734846640566,-500.0,0.00019178,2]
[346261662,1734846640575,-500.0,0.00019178,2]
[346261663,1734846640585,-500.0,0.00019178,2]
[346261664,1734846640595,-500.0,0.00019178,2]
[346261665,1734846640604,-500.0,0.00019178,2]
[346261666,1734846640614,-500.0,0.00019178,2]
[346261667,1734846640623,-500.0,0.00019178,2]
[346261668,1734846640633,-500.0,0.00019178,2]
[346261669,1734846640642,-513.39,0.00019178,2]
[346261670,1734846640651,-622.05,0.00019178,2]
[346261671,1734846640661,-500.0,0.00019178,2]
[346261672,1734846640671,-500.0,0.00019178,2]
[346261673,1734846640681,-500.0,0.00019178,2]
[346261674,1734846640690,-500.0,0.00019178,2]
[346261675,1734846640701,-500.0,0.00019178,2]
[346261676,1734846640710,-500.0,0.00019178,2]
[346261677,1734846640719,-500.0,0.00019178,2]
[346261678,1734846640729,-500.0,0.00019178,2]
[346261679,1734846640738,-500.0,0.00019178,2]
[346261680,1734846640747,-500.0,0.00019178,2]
[346261681,1734846640756,-500.0,0.00019178,2]
[346261682,1734846640766,-500.0,0.00019178,2]
[346261683,1734846640777,-500.0,0.00019178,2]
[346261684,1734846640786,-500.0,0.00019178,2]
[346261685,1734846640795,-500.0,0.00019178,2]
[346261686,1734846640804,-500.0,0.00019178,2]
[346261687,1734846640814,-500.0,0.00019178,2]
[346261688,1734846640823,-244.07063337,0.00019178,2]
[346261689,1734846640832,-500.0,0.00019178,2]
[346261690,1734846640841,-507.27440814,0.00019178,2]
[346261691,1734846640850,-501.2358609,0.00019178,2]
[346261692,1734846640860,-500.0,0.00019178,2]
[346261693,1734846640869,-500.0,0.00019178,2]
[346261694,1734846640878,-500.0,0.00019178,2]
[346261695,1734846640887,-500.0,0.00019178,2]
[346261696,1734846640896,-500.0,0.00019178,2]
[346261697,1734846640906,-500.0,0.00019178,2]
[346261698,1734846640915,-500.0,0.00019178,2]
[346261699,1734846640924,-500.0,0.00019178,2]
[346261700,1734846640933,-500.0,0.00019178,2]
[346261701,1734846640942,-523.75,0.00019178,2]
[346261702,1734846640951,-500.0,0.00019178,2]
[346261703,1734846640960,-500.0,0.00019178,2]
[346261704,1734846640970,-500.0,0.00019178,2]
[346261705,1734846640979,-500.0,0.00019178,2]
[346261706,1734846640987,-500.0,0.00019178,2]
[346261707,1734846640997,-343.44239615,0.00019178,2]
[346261708,1734846641006,-284.08680026,0.00019178,2]
[346261709,1734846641014,-1531.12,0.00019178,2]
[346261710,1734846641024,-506.25903206,0.00019178,2]
[346261711,1734846641034,-500.0,0.00019178,2]
[346261712,1734846641043,-500.0,0.00019178,2]
[346261713,1734846641052,-500.0,0.00019178,2]
[346261714,1734846641062,-500.0,0.00019178,2]
[346261715,1734846641071,-500.0,0.00019178,2]
[346261716,1734846641080,-500.0,0.00019178,2]
[346261717,1734846641089,-500.0,0.00019178,2]
[346261718,1734846641098,-208.47515744,0.00019178,2]
[346261719,1734846641107,-500.0,0.00019178,2]
[346261720,1734846641117,-500.0,0.00019178,2]
[346261721,1734846641127,-500.0,0.00019178,2]
[346261722,1734846641136,-500.0,0.00019178,2]
[346261723,1734846641145,-500.0,0.00019178,2]
[346261724,1734846641154,-500.0,0.00019178,2]
[346261725,1734846641163,-587.78,0.00019178,2]
[346261726,1734846641172,-500.0,0.00019178,2]
[346261727,1734846641182,-500.0,0.00019178,2]
[346261728,1734846641191,-500.0,0.00019178,2]
[346261729,1734846641200,-500.0,0.00019178,2]
[346261730,1734846641209,-500.0,0.00019178,2]
[346261731,1734846641218,-500.0,0.00019178,2]
[346261732,1734846641229,-1970.84,0.00019178,2]
[346261733,1734846641239,-889.81,0.00019178,2]
[346261734,1734846641248,-500.0,0.00019178,2]
[346261735,1734846641257,-228.63742045,0.00019178,2]
[346261736,1734846641266,-500.0,0.00019178,2]
[346261737,1734846641276,-500.0,0.00019178,2]
[346261738,1734846641285,-500.0,0.00019178,2]
[346261739,1734846641294,-500.0,0.00019178,2]
[346261740,1734846641303,-500.0,0.00019178,2]
[346261741,1734846641313,-1007.84,0.00019178,2]
[346261742,1734846641322,-741.64,0.00019178,2]
[346261743,1734846641331,-500.0,0.00019178,2]
[346261744,1734846641340,-500.0,0.00019178,2]
[346261745,1734846641349,-500.0,0.00019178,2]
[346261746,1734846641358,-662.75,0.00019178,2]
[346261747,1734846641367,-500.0,0.00019178,2]
[346261748,1734846641377,-676.15,0.00019178,2]
[346261749,1734846641390,-500.0,0.00019178,2]
[346261750,1734846641400,-718.92,0.00019178,2]
[346261751,1734846641411,-500.0,0.00019178,2]
[346261752,1734846641420,-500.0,0.00019178,2]
[346261753,1734846641431,-783.03,0.00019178,2]
[346261754,1734846641442,-500.0,0.00019178,2]
[346261755,1734846641452,-500.0,0.00019178,2]
[346261756,1734846641462,-500.0,0.00019178,2]
[346261757,1734846641473,-500.0,0.00019178,2]
[346261758,1734846641482,-500.0,0.00019178,2]
[346261759,1734846641492,-500.0,0.00019178,2]
[346261760,1734846641502,-398.88,0.00019178,2]
[346261761,1734846641511,-161.54555632,0.00019178,2]
[346261762,1734846641521,-500.0,0.00019178,2]
[346261763,1734846641530,-500.0,0.00019178,2]
[346261764,1734846641538,-500.0,0.00019178,2]
[346261765,1734846641548,-407.75059311,0.00019178,2]
[346261766,1734846641557,-500.0,0.00019178,2]
[346261767,1734846641567,-504.1709827,0.00019178,2]
[346261768,1734846641576,-585.17,0.00019178,2]
[346261769,1734846641586,-500.0,0.00019178,2]
[346261770,1734846641595,-584.12,0.00019178,2]
[346261771,1734846641605,-500.0,0.00019178,2]
[346261772,1734846641614,-500.0,0.00019178,2]
[346261773,1734846641624,-500.0,0.00019178,2]
[346261774,1734846641633,-5380.15,0.00019178,2]
[346261775,1734846641643,-500.0,0.00019178,2]
[346261776,1734846641652,-2065.33,0.00019178,2]
[346261777,1734846641662,-554.02334595,0.00019178,2]
[346261778,1734846641671,-500.0,0.00019178,2]
[346261779,1734846641680,-500.0,0.00019178,2]
[346261780,1734846641690,-500.0,0.00019178,2]
[346261781,1734846641699,-500.0,0.00019178,2]
[346261782,1734846641709,-790.61,0.00019178,2]
[346261783,1734846641720,-500.0,0.00019178,2]
[346261784,1734846641730,-1635.4,0.00019178,2]
[346261785,1734846641740,-500.0,0.00019178,2]
[346261786,1734846641750,-219.71265237,0.00019178,2]
[346261787,1734846641760,-1238.81,0.00019178,2]
[346261788,1734846641771,-523.8,0.00019178,2]
[346261789,1734846641780,-500.0,0.00019178,2]
[346261790,1734846641791,-782.37,0.00019178,2]
[346261791,1734846641800,-500.0,0.00019178,2]
[346261792,1734846641810,-500.0,0.00019178,2]
[346261793,1734846641820,-840.34,0.00019178,2]
[346261794,1734846641830,-656.77,0.00019178,2]
[346261795,1734846641839,-500.0,0.00019178,2]
[346261796,1734846641849,-500.0,0.00019178,2]
[346261797,1734846641859,-500.0,0.00019178,2]
[346261798,1734846641869,-500.0,0.00019178,2]
[346261799,1734846641878,-1077.95,0.00019178,2]
[346261800,1734846641887,-500.0,0.00019178,2]
[346261801,1734846641896,-500.0,0.00019178,2]
[346261802,1734846641905,-500.0,0.00019178,2]
[346261803,1734846641915,-500.0,0.00019178,2]
[346261804,1734846641924,-5483.91,0.00019178,2]
[346261805,1734846641934,-500.0,0.00019178,2]
[346261806,1734846641943,-1019.69,0.00019178,2]
[346261807,1734846641953,-15919.96,0.00019178,2]
[346261808,1734846641962,-500.0,0.00019178,2]
[346261809,1734846641972,-500.0,0.00019178,2]
[346261810,1734846641981,-779.24,0.00019178,2]
[346261811,1734846641990,-500.0,0.00019178,2]
[346261812,1734846642000,-227.0332308,0.00019178,2]
[346261813,1734846642009,-500.0,0.00019178,2]
[346261814,1734846642018,-500.0,0.00019178,2]
[346261815,1734846642029,-500.0,0.00019178,2]
[346261816,1734846642039,-500.0,0.00019178,2]
[346261817,1734846642048,-500.0,0.00019178,2]
[346261818,1734846642057,-575.68,0.00019178,2]
[346261819,1734846642067,-500.0,0.00019178,2]
[346261820,1734846642076,-1064.57,0.00019178,2]
[346261821,1734846642086,-622.82,0.00019178,2]
[346261822,1734846642095,-500.0,0.00019178,2]
[346261823,1734846642103,-500.0,0.00019178,2]
[346261824,1734846642113,-1965.08,0.00019178,2]
[346261825,1734846642122,-757.2,0.00019178,2]
[346261826,1734846642131,-500.0,0.00019178,2]
[346261827,1734846642140,-2920.34,0.00019178,2]
[346261828,1734846642149,-677.58,0.00019178,2]
[346261829,1734846642158,-635.31,0.00019178,2]
[346261830,1734846642167,-501.08,0.00019178,2]
[346261831,1734846642176,-1067.6,0.00019178,2]
[346261832,1734846642186,-937.74,0.00019178,2]
[346261833,1734846642195,-535.68,0.00019178,2]
[346261834,1734846642204,-1219.47,0.00019178,2]
[346261835,1734846642213,-1582.35,0.00019178,2]
[346261836,1734846642223,-500.0,0.00019178,2]
[346261837,1734846642231,-687.76,0.00019178,2]
[346261838,1734846642241,-510.51759896,0.00019178,2]
[346261839,1734846642250,-706.98,0.00019178,2]
[346261840,1734846642259,-1660.3,0.00019178,2]
[346261841,1734846642268,-500.0,0.00019178,2]
[346261842,1734846642279,-508.67339929,0.00019178,2]
[346261843,1734846642288,-500.0,0.00019178,2]
[346261844,1734846642298,-949.64,0.00019178,2]
[346261845,1734846642307,-709.5,0.00019178,2]
[346261846,1734846642316,-7272.24,0.00019178,2]
[346261847,1734846642326,-4516.8,0.00019178,2]
[346261848,1734846642334,-500.0,0.00019178,2]
[346261849,1734846642344,-500.0,0.00019178,2]
[346261850,1734846642354,-500.0,0.00019178,2]
[346261851,1734846642363,-9248.52585077,0.00019178,2]
[346261852,1734846642632,-1049.41419005,0.00019178,2]
[346261853,1734846642644,-1685.77121904,0.00019178,2]
[346261854,1734846642655,-1007.52312096,0.00019178,2]
[346261855,1734846642666,-4919.72166071,0.00019178,2]
[346261856,1734846642677,-1367.75395847,0.00019178,2]
[346261857,1734846642686,-500.0,0.00019178,2]
[346261859,1734846642696,-679.62,0.00019178,2]
[346261861,1734846642705,-1346.97,0.00019178,2]
[346261863,1734846642714,-1034.06,0.00019178,2]
[346261864,1734846642724,-923.52,0.00019178,2]
[346261865,1734846642733,-2581.06,0.00019178,2]
[346261866,1734846642742,-2052.55,0.00019178,2]
[346261867,1734846642751,-604.20765115,0.00019178,2]
[346261868,1734846642761,-3900.41,0.00019178,2]
[346261869,1734846642772,-370.62729045,0.00019178,2]
[346261870,1734846642782,-2418.54,0.00019178,2]
[346261871,1734846642791,-1593.6,0.00019178,2]
[346261872,1734846642801,-996.13,0.00019178,2]
[346261874,1734846642811,-11511.86,0.00019178,2]
[346261875,1734846642820,-1824.48,0.00019178,2]
[346261876,1734846642829,-3556.97,0.00019178,2]
[346261877,1734846642838,-2863.39,0.00019178,2]
[346261878,1734846642848,-761.3,0.00019178,2]
[346261879,1734846642857,-500.0,0.00019178,2]
[346261880,1734846642866,-530.30487332,0.00019178,2]
[346261881,1734846642875,-500.0,0.00019178,2]
[346261882,1734846642885,-500.0,0.00019178,2]
[346261883,1734846642894,-500.0,0.00019178,2]
[346261884,1734846642903,-777.2,0.00019178,2]
[346261885,1734846642912,-500.0,0.00019178,2]
[346261886,1734846642922,-1853.38,0.00019178,2]
[346261887,1734846642931,-799.47,0.00019178,2]
[346261888,1734846642940,-1063.73,0.00019178,2]
[346261889,1734846642949,-500.0,0.00019178,2]
[346261890,1734846642958,-1960.5,0.00019178,2]
[346261891,1734846642967,-566.89,0.00019178,2]
[346261892,1734846642977,-500.0,0.00019178,2]
[346261893,1734846642986,-869.37,0.00019178,2]
[346261894,1734846642995,-500.0,0.00019178,2]
[346261895,1734846643005,-6701.22,0.00019178,2]
[346261896,1734846643014,-500.0,0.00019178,2]
[346261897,1734846643023,-500.0,0.00019178,2]
[346261898,1734846643033,-4356.9,0.00019178,2]
[346261899,1734846643042,-167.83551788,0.00019178,2]
[346261900,1734846643051,-2181.09,0.00019178,2]
[346261901,1734846643060,-614.5,0.00019178,2]
[346261902,1734846643069,-500.0,0.00019178,2]